[Event "29th Paul Keres Memorial 2020"]
[Site "Tallinn"]
[Date "2020.01.11"]
[Round "7.3"]
[White "Alekseev, Evgeny"]
[Black "Kovalenko, Igor"]
[Result "0-1"]
[ECO "B38"]
[WhiteElo "2623"]
[BlackElo "2640"]
[Annotator "ChessBase"]
[PlyCount "104"]
[EventDate "2020.01.11"]
[EventType "swiss"]
[EventCountry "EST"]
[SourceTitle "playchess.com"]
[Source "ChessBase"]
[SourceQuality "1"]
[TimeControl "900+5"]

1. e4 {[%emt 0:00:00]} c5 {[%emt 0:00:00]} 2. Nf3 {[%emt 0:00:00]} Nc6 {[%emt 0:00:00]} 3. d4 {[%emt 0:00:02]} cxd4 {[%emt 0:00:00]} 4. Nxd4 {[%emt 0:00:02]} g6 {[%emt 0:00:00]} 5. c4 {[%emt 0:00:08]} Bg7 {[%emt 0:00:00]} 6. Be3 {[%emt 0:00:04]} Qb6 {[%emt 0:01:05]} 7. Nb5 {[%emt 0:00:49]} Qa5+ {[%emt 0:00:03]} 8. N1c3 {[%emt 0:01:43]} Nf6 {[%emt 0:00:07]} 9. f3 {[%emt 0:01:38]} O-O {[%emt 0:00:58]} 10. Be2 {[%emt 0:02:30]} a6 {[%emt 0:01:57]} 11. Nd4 {[%emt 0:00:02]} Nh5 {[%emt 0:00:05]} 12. Qd2 {[%emt 0:00:47]} Nxd4 {[%emt 0:03:06]} 13. Bxd4 {[%emt 0:00:01]} Bxd4 {[%emt 0:00:01]} 14. Qxd4 {[%emt 0:00:02]} d6 {[%emt 0:00:01]} 15. g3 {[%emt 0:02:05]} Be6 {[%emt 0:00:10]} 16. Kf2 {[%emt 0:00:37]} Rac8 {[%emt 0:00:18]} 17. Rhc1 {[%emt 0:01:35]} f5 {[%emt 0:00:27]} 18. Nd5 {[%emt 0:00:25]} Bxd5 {[%emt 0:00:14]} 19. Qxd5+ {[%emt 0:00:12]} Qxd5 {[%emt 0:00:02]} 20. exd5 {[%emt 0:00:06]} a5 {[%emt 0:00:29]} 21. Rc3 {[%emt 0:00:12]} Rc5 {[%emt 0:00:21]} 22. Re1 {[%emt 0:00:41]} Kf7 {[%emt 0:00:49]} 23. Re3 {[%emt 0:00:47]} Nf6 {[%emt 0:00:09]} 24. Bd1 {[%emt 0:01:03]} Rc7 {[%emt 0:00:01]} 25. Ba4 {[%emt 0:00:24]} h5 {[%emt 0:00:39]} 26. h4 {[%emt 0:00:26]} Rg8 {[%emt 0:00:01]} 27. Bb5 {[%emt 0:00:08]} Ra8 {[%emt 0:00:31]} 28. R1e2 {[%emt 0:00:24]} Ng8 {[%emt 0:00:28]} 29. Ra3 {[%emt 0:00:08]} Nh6 {[%emt 0:00:08]} 30. Ke3 {[%emt 0:00:06]} Ng8 {[%emt 0:00:32]} 31. Kf4 {[%emt 0:00:02]} Nf6 {[%emt 0:00:00]} 32. Rae3 {[%emt 0:00:15]} Rac8 {[%emt 0:00:12]} 33. Rc3 {[%emt 0:00:12]} Rc5 {[%emt 0:00:14]} 34. Rd2 {[%emt 0:00:04]} R8c7 {[%emt 0:00:21]} 35. Ke3 {[%emt 0:00:03]} Rc8 {[%emt 0:00:14]} 36. Ra3 {[%emt 0:00:03]} b6 {[%emt 0:00:08]} 37. Rb3 {[%emt 0:00:04]} Rg8 {[%emt 0:00:14]} 38. Kf4 {[%emt 0:00:05]} Rgc8 {[%emt 0:00:09]} 39. Rd4 {[%emt 0:00:04]} R5c7 {[%emt 0:00:34]} 40. Re3 {[%emt 0:00:09]} Nh7 {[%emt 0:00:09]} 41. Rb3 {[%emt 0:00:07]} Nf8 {[%emt 0:00:05]} 42. Ke3 {[%emt 0:00:03]} Kf6 {[%emt 0:00:06]} 43. Rd2 {[%emt 0:00:06]} Rb8 {[%emt 0:00:09]} 44. Rdd3 {[%emt 0:00:04]} g5 {[%emt 0:00:45]} 45. hxg5+ {[%emt 0:00:01]} Kxg5 {[%emt 0:00:01]} 46. Rd4 {[%emt 0:00:07]} Ng6 {[%emt 0:00:17]} 47. Kf2 {[%emt 0:00:06]} Rh8 {[%emt 0:00:17]} 48. Bc6 {[%emt 0:00:06]} e5 {[%emt 0:00:04]} 49. Rdd3 {[%emt 0:00:09]} h4 {[%emt 0:00:09]} 50. Rxb6 {[%emt 0:00:06]} hxg3+ {[%emt 0:00:03]} 51. Kxg3 {[%emt 0:00:00]} Nf4 {[%emt 0:00:01]} 52. Rd1 {[%emt 0:00:01]} Rch7 {[%emt 0:00:07]} 0-1

[Event "29th Paul Keres Memorial 2020"]
[Site "Tallinn"]
[Date "2020.01.11"]
[Round "7.4"]
[White "Petursson, Margeir"]
[Black "Moiseenko, Alexander"]
[Result "0-1"]
[ECO "A20"]
[WhiteElo "2466"]
[BlackElo "2620"]
[Annotator "ChessBase"]
[PlyCount "112"]
[EventDate "2020.01.11"]
[EventType "swiss"]
[EventCountry "EST"]
[SourceTitle "playchess.com"]
[Source "ChessBase"]
[SourceQuality "1"]
[TimeControl "900+5"]

1. c4 {[%emt 0:00:00]} e5 {[%emt 0:00:00]} 2. g3 {[%emt 0:00:00]} c6 {[%emt 0:00:00]} 3. d4 {[%emt 0:00:09]} Bb4+ {[%emt 0:01:11]} 4. Bd2 {[%emt 0:00:16]} Bxd2+ {[%emt 0:00:04]} 5. Qxd2 {[%emt 0:00:03]} d6 {[%emt 0:00:01]} 6. Nc3 {[%emt 0:00:18]} Nf6 {[%emt 0:00:11]} 7. Bg2 {[%emt 0:00:49]} O-O {[%emt 0:00:14]} 8. dxe5 {[%emt 0:01:42]} dxe5 {[%emt 0:00:02]} 9. Qxd8 {[%emt 0:00:02]} Rxd8 {[%emt 0:00:01]} 10. Nf3 {[%emt 0:00:05]} Re8 {[%emt 0:02:31]} 11. Nd2 {[%emt 0:00:43]} Na6 {[%emt 0:01:44]} 12. h3 {[%emt 0:01:08]} Bf5 {[%emt 0:01:58]} 13. g4 {[%emt 0:00:33]} Bg6 {[%emt 0:00:01]} 14. O-O-O {[%emt 0:01:08]} Nc5 {[%emt 0:01:26]} 15. g5 {[%emt 0:00:52]} Nfd7 {[%emt 0:00:40]} 16. Nde4 {[%emt 0:00:53]} a5 {[%emt 0:00:12]} 17. h4 {[%emt 0:00:46]} Red8 {[%emt 0:01:34]} 18. Nd6 {[%emt 0:02:02]} Bh5 {[%emt 0:01:37]} 19. Rd2 {[%emt 0:00:28]} Nf8 {[%emt 0:00:01]} 20. Nce4 {[%emt 0:00:43]} Nfe6 {[%emt 0:00:20]} 21. Nxc5 {[%emt 0:00:32]} Nxc5 {[%emt 0:00:03]} 22. Rhd1 {[%emt 0:00:28]} Kf8 {[%emt 0:01:14]} 23. Ne4 {[%emt 0:00:52]} Ne6 {[%emt 0:00:35]} 24. Ng3 {[%emt 0:00:42]} Rxd2 {[%emt 0:00:49]} 25. Rxd2 {[%emt 0:00:03]} Bg4 {[%emt 0:00:16]} 26. f3 {[%emt 0:01:08]} Nf4 {[%emt 0:00:01]} 27. Bf1 {[%emt 0:00:09]} Be6 {[%emt 0:00:13]} 28. e3 {[%emt 0:00:07]} Ng6 {[%emt 0:00:01]} 29. h5 {[%emt 0:00:09]} Nh4 {[%emt 0:00:02]} 30. f4 {[%emt 0:00:16]} Re8 {[%emt 0:00:20]} 31. b3 {[%emt 0:00:13]} Nf5 {[%emt 0:00:07]} 32. Nxf5 Bxf5 33. Rf2 {[%emt 0:00:14]} exf4 {[%emt 0:00:03]} 34. Rxf4 {[%emt 0:00:04]} g6 {[%emt 0:00:02]} 35. Kd2 {[%emt 0:00:04]} Re5 {[%emt 0:00:05]} 36. Rd4 {[%emt 0:00:10]} Ke7 {[%emt 0:00:01]} 37. Be2 {[%emt 0:00:07]} Be6 {[%emt 0:00:05]} 38. hxg6 {[%emt 0:00:06]} hxg6 {[%emt 0:00:03]} 39. Bg4 {[%emt 0:00:02]} Rxg5 {[%emt 0:00:02]} 40. Bxe6 {[%emt 0:00:01]} Kxe6 {[%emt 0:00:04]} 41. Kd3 {[%emt 0:00:07]} Rg1 {[%emt 0:00:12]} 42. Rh4 {[%emt 0:00:02]} Rd1+ {[%emt 0:00:08]} 43. Ke4 {[%emt 0:00:05]} Rd2 {[%emt 0:00:06]} 44. Rh8 {[%emt 0:00:06]} Rxa2 {[%emt 0:00:10]} 45. Rb8 {[%emt 0:00:02]} Rb2 {[%emt 0:00:05]} 46. Rxb7 {[%emt 0:00:04]} a4 {[%emt 0:00:01]} 47. b4 {[%emt 0:00:01]} a3 {[%emt 0:00:06]} 48. b5 {[%emt 0:00:05]} cxb5 {[%emt 0:00:11]} 49. cxb5 {[%emt 0:00:02]} a2 {[%emt 0:00:01]} 50. Ra7 {[%emt 0:00:01]} Kd6 {[%emt 0:00:01]} 51. b6 {[%emt 0:00:07]} Kc6 {[%emt 0:00:06]} 52. b7 {[%emt 0:00:03]} Kc7 {[%emt 0:00:01]} 53. Ke5 {[%emt 0:00:03]} Kb8 {[%emt 0:00:04]} 54. Ra3 {[%emt 0:00:02]} Kxb7 {[%emt 0:00:02]} 55. Kf6 {[%emt 0:00:01]} Rf2+ {[%emt 0:00:02]} 56. Ke7 {[%emt 0:00:07]} Kc6 {[%emt 0:00:06]} 0-1

[Event "29th Paul Keres Memorial 2020"]
[Site "Tallinn"]
[Date "2020.01.11"]
[Round "7.6"]
[White "Gareyev, Timur"]
[Black "Chukavin, Kirill"]
[Result "1-0"]
[ECO "E32"]
[WhiteElo "2607"]
[BlackElo "2359"]
[Annotator "ChessBase"]
[PlyCount "45"]
[EventDate "2020.01.11"]
[EventType "swiss"]
[EventCountry "EST"]
[SourceTitle "playchess.com"]
[Source "ChessBase"]
[SourceQuality "1"]
[TimeControl "900+5"]

1. d4 {[%emt 0:00:00]} Nf6 {[%emt 0:00:00]} 2. c4 {[%emt 0:00:00]} e6 {[%emt 0:00:05]} 3. Nc3 {[%emt 0:00:00]} Bb4 {[%emt 0:00:02]} 4. Qc2 {[%emt 0:00:00]} d6 {[%emt 0:00:10]} 5. Nf3 {[%emt 0:00:02]} Nbd7 {[%emt 0:00:08]} 6. a3 {[%emt 0:00:25]} Bxc3+ {[%emt 0:00:03]} 7. Qxc3 {[%emt 0:00:03]} b6 {[%emt 0:00:28]} 8. g3 {[%emt 0:00:01]} Bb7 {[%emt 0:00:05]} 9. Bg2 {[%emt 0:00:01]} Qe7 {[%emt 0:00:13]} 10. O-O {[%emt 0:00:04]} a5 {[%emt 0:00:34]} 11. b3 {[%emt 0:00:23]} O-O {[%emt 0:00:16]} 12. Rd1 {[%emt 0:01:07]} Ne4 {[%emt 0:01:14]} 13. Qc2 {[%emt 0:00:13]} Nef6 {[%emt 0:02:53]} 14. d5 {[%emt 0:00:44]} exd5 {[%emt 0:01:31]} 15. Nd4 {[%emt 0:00:01]} Nc5 {[%emt 0:01:11]} 16. Nf5 {[%emt 0:01:09]} Qd8 {[%emt 0:00:47]} 17. cxd5 {[%emt 0:00:05]} Re8 {[%emt 0:01:29]} 18. Bb2 {[%emt 0:00:48]} Bc8 {[%emt 0:00:46]} 19. Nd4 {[%emt 0:00:04]} Bb7 {[%emt 0:00:07]} 20. b4 {[%emt 0:00:17]} axb4 {[%emt 0:01:10]} 21. axb4 {[%emt 0:00:01]} Nce4 {[%emt 0:00:58]} 22. Nf5 {[%emt 0:00:33]} Rxa1 {[%emt 0:00:34]} 23. Bxa1 {[%emt 0:00:21]} 1-0

[Event "29th Paul Keres Memorial 2020"]
[Site "Tallinn"]
[Date "2020.01.12"]
[Round "10.1"]
[White "Kuzubov, Yuriy"]
[Black "Reprintsev, Alexander"]
[Result "1/2-1/2"]
[ECO "D08"]
[WhiteElo "2644"]
[BlackElo "2353"]
[Annotator "ChessBase"]
[PlyCount "119"]
[EventDate "2020.01.11"]
[EventType "swiss"]
[EventCountry "EST"]
[SourceTitle "playchess.com"]
[Source "ChessBase"]
[SourceQuality "1"]
[TimeControl "900+5"]

1. d4 {[%emt 0:00:00]} d5 {[%emt 0:00:00]} 2. c4 {[%emt 0:00:01]} e5 {[%emt 0:00:00]} 3. cxd5 {[%emt 0:01:00]} Qxd5 {[%emt 0:00:00]} 4. e3 {[%emt 0:03:21]} exd4 {[%emt 0:00:08]} 5. Nc3 {[%emt 0:00:22]} Bb4 {[%emt 0:00:02]} 6. exd4 {[%emt 0:00:13]} Nc6 {[%emt 0:00:04]} 7. Nf3 {[%emt 0:01:22]} Bg4 {[%emt 0:00:02]} 8. Be2 {[%emt 0:00:06]} Bxf3 {[%emt 0:00:02]} 9. Bxf3 {[%emt 0:00:05]} Qc4 {[%emt 0:00:00]} 10. Bxc6+ {[%emt 0:01:59]} Qxc6 {[%emt 0:00:02]} 11. O-O {[%emt 0:00:11]} Ne7 {[%emt 0:00:01]} 12. Qb3 {[%emt 0:00:18]} Bd6 {[%emt 0:01:00]} 13. d5 {[%emt 0:00:08]} Qb6 {[%emt 0:00:05]} 14. Nb5 {[%emt 0:00:08]} O-O {[%emt 0:03:46]} 15. Be3 {[%emt 0:00:03]} Qa5 {[%emt 0:01:09]} 16. Rac1 {[%emt 0:00:53]} Nf5 {[%emt 0:00:38]} 17. Nxd6 {[%emt 0:01:42]} cxd6 {[%emt 0:00:17]} 18. Bf4 {[%emt 0:00:25]} Qa6 {[%emt 0:01:25]} 19. Qc4 {[%emt 0:00:26]} Qb6 {[%emt 0:02:58]} 20. Qe4 {[%emt 0:00:44]} g6 {[%emt 0:00:01]} 21. g4 {[%emt 0:00:46]} Rfe8 {[%emt 0:00:03]} 22. Qd3 {[%emt 0:00:03]} Qd4 {[%emt 0:00:16]} 23. Qd2 {[%emt 0:01:06]} Re4 {[%emt 0:00:39]} 24. gxf5 {[%emt 0:00:17]} Rxf4 {[%emt 0:00:01]} 25. Qxd4 {[%emt 0:00:02]} Rxd4 {[%emt 0:00:01]} 26. fxg6 {[%emt 0:00:05]} hxg6 {[%emt 0:00:00]} 27. Rc7 {[%emt 0:00:04]} b6 {[%emt 0:00:18]} 28. Re1 {[%emt 0:00:13]} Rxd5 {[%emt 0:00:01]} 29. Ree7 {[%emt 0:00:04]} Rf5 {[%emt 0:00:57]} 30. Rxa7 {[%emt 0:00:03]} Rxa7 {[%emt 0:00:00]} 31. Rxa7 Rd5 {[%emt 0:01:03]} 32. a4 {[%emt 0:00:36]} Rd2 {[%emt 0:00:33]} 33. b4 {[%emt 0:00:05]} Rd4 {[%emt 0:00:11]} 34. b5 {[%emt 0:00:05]} Kg7 {[%emt 0:00:10]} 35. Ra6 {[%emt 0:00:10]} d5 {[%emt 0:00:04]} 36. Kf1 {[%emt 0:00:04]} Re4 {[%emt 0:00:16]} 37. f3 {[%emt 0:00:11]} Rc4 {[%emt 0:00:05]} 38. Ke2 {[%emt 0:00:04]} g5 {[%emt 0:00:04]} 39. Kd3 {[%emt 0:00:09]} f6 {[%emt 0:00:06]} 40. Rxb6 {[%emt 0:00:06]} Rxa4 {[%emt 0:00:01]} 41. Rd6 {[%emt 0:00:03]} Ra3+ {[%emt 0:00:06]} 42. Kd4 {[%emt 0:00:26]} Rxf3 {[%emt 0:00:03]} 43. b6 {[%emt 0:00:03]} Rb3 {[%emt 0:00:44]} 44. Kc5 {[%emt 0:00:14]} Rb2 {[%emt 0:00:31]} 45. Kc6 {[%emt 0:00:05]} Rxh2 {[%emt 0:00:09]} 46. Rxd5 {[%emt 0:00:03]} g4 {[%emt 0:00:22]} 47. b7 {[%emt 0:00:01]} Rh8 {[%emt 0:00:01]} 48. Kc7 {[%emt 0:00:07]} Kg6 {[%emt 0:00:05]} 49. Rd8 {[%emt 0:00:10]} Rh7+ {[%emt 0:00:01]} 50. Rd7 {[%emt 0:00:01]} Rh8 {[%emt 0:00:01]} 51. Rd8 {[%emt 0:00:04]} Rh7+ {[%emt 0:00:00]} 52. Kc6 {[%emt 0:00:06]} Rxb7 {[%emt 0:00:03]} 53. Kxb7 {[%emt 0:00:01]} Kg5 {[%emt 0:00:06]} 54. Kc6 {[%emt 0:00:03]} g3 {[%emt 0:00:07]} 55. Kd5 {[%emt 0:00:09]} Kf4 {[%emt 0:00:01]} 56. Rg8 {[%emt 0:00:05]} Kf3 {[%emt 0:00:04]} 57. Ke6 {[%emt 0:00:06]} g2 {[%emt 0:00:02]} 58. Kxf6 {[%emt 0:00:03]} Kf2 {[%emt 0:00:00]} 59. Rxg2+ {[%emt 0:00:03]} Kxg2 60. Kf7 1/2-1/2

[Event "29th Paul Keres Memorial 2020"]
[Site "Tallinn"]
[Date "2020.01.12"]
[Round "10.2"]
[White "Kovalenko, Igor"]
[Black "Moiseenko, Alexander"]
[Result "0-1"]
[ECO "B40"]
[WhiteElo "2640"]
[BlackElo "2620"]
[Annotator "RC"]
[PlyCount "130"]
[EventDate "2020.01.11"]
[EventType "swiss"]
[EventCountry "EST"]
[SourceTitle "playchess.com"]
[Source "ChessBase"]
[SourceQuality "1"]
[TimeControl "900+5"]

1. e4 {[%emt 0:00:00]} c5 {[%emt 0:00:00]} 2. Nf3 {[%emt 0:00:00]} e6 {[%emt 0:00:00]} 3. c3 {[%emt 0:00:00]} Nf6 {[%emt 0:00:10]} 4. e5 {[%emt 0:00:00]} Nd5 {[%emt 0:00:01]} 5. d4 {[%emt 0:00:00]} cxd4 {[%emt 0:00:06]} 6. cxd4 {[%emt 0:00:00]} d6 {[%emt 0:00:01]} 7. Bc4 {[%emt 0:00:01]} Nc6 {[%emt 0:00:07]} 8. O-O {[%emt 0:00:03]} Be7 {[%emt 0:00:01]} 9. Qe2 {[%emt 0:00:02]} O-O {[%emt 0:00:04]} 10. Rd1 {[%emt 0:00:00]} Na5 {[%emt 0:00:45]} 11. Bb5 {[%emt 0:00:02]} Bd7 {[%emt 0:01:50]} 12. Bd3 {[%emt 0:00:01]} Nb4 {[%emt 0:01:32]} 13. Nc3 {[%emt 0:00:01]} Nxd3 {[%emt 0:00:05]} 14. Rxd3 {[%emt 0:00:01]} b5 {[%emt 0:01:37]} 15. a3 {[%emt 0:01:29]} Nb3 {[%emt 0:00:29]} 16. Rb1 {[%emt 0:00:02]} Nxc1 {[%emt 0:00:17]} 17. Rxc1 {[%emt 0:00:00]} Rc8 {[%emt 0:00:04]} 18. d5 {[%emt 0:02:16]} exd5 {[%emt 0:00:13]} 19. exd6 {[%emt 0:00:03]} Bxd6 {[%emt 0:00:09]} 20. Rcd1 {[%emt 0:00:54]} Re8 {[%emt 0:00:09]} 21. Qd2 {[%emt 0:00:10]} Bc6 {[%emt 0:02:25]} 22. Nd4 {[%emt 0:02:42]} b4 {[%emt 0:01:19]} 23. axb4 {[%emt 0:00:44]} Bxb4 {[%emt 0:00:08]} 24. Nxc6 {[%emt 0:00:53]} Rxc6 {[%emt 0:00:02]} 25. Rxd5 {[%emt 0:00:01]} Qf6 {[%emt 0:00:39]} 26. g3 {[%emt 0:03:00]} Bxc3 {[%emt 0:00:13]} 27. bxc3 {[%emt 0:00:00]} g6 {[%emt 0:00:44]} 28. Rc1 {[%emt 0:00:49]} Qf3 {[%emt 0:01:06]} 29. c4 {[%emt 0:01:28]} Re2 {[%emt 0:00:52]} 30. Qd4 {[%emt 0:00:08]} Rf6 {[%emt 0:00:06]} 31. Rd8+ {[%emt 0:00:40]} Kg7 {[%emt 0:00:01]} 32. Rf1 {[%emt 0:00:01]} Qb7 {[%emt 0:01:40]} 33. Qc5 {[%emt 0:01:09]} Qe7 {[%emt 0:00:02]} 34. Qc8 {[%emt 0:00:01]} Qe6 {[%emt 0:00:37]} 35. Qc5 {[%emt 0:00:57]} Qe7 {[%emt 0:00:11]} 36. Qc8 Qe6 37. Rg8+ {[%emt 0:00:03]} Kh6 {[%emt 0:00:01]} 38. Qf8+ {[%emt 0:00:05]} Kg5 {[%emt 0:00:04]} 39. Qc5+ {[%emt 0:00:10]} Rf5 {[%emt 0:00:18]} 40. Qd4 {[%emt 0:00:08]} Qe4 {[%emt 0:00:04]} 41. Qd8+ {[%emt 0:00:14]} Qe7 {[%emt 0:00:05]} 42. Qd1 {[%emt 0:00:02]} Rfxf2 {[%emt 0:00:05]} 43. Qd5+ {[%emt 0:00:04]} Re5 {[%emt 0:00:07]} 44. Rxf2 {[%emt 0:00:05]} Rxd5 {[%emt 0:00:01]} 45. cxd5 {[%emt 0:00:00]} Qe1+ {[%emt 0:00:01]} 46. Rf1 {[%emt 0:00:01]} Qe3+ {[%emt 0:00:01]} 47. Rf2 {[%emt 0:00:01]} Qe1+ {[%emt 0:00:02]} 48. Rf1 {[%emt 0:00:01]} Qe3+ {[%emt 0:00:01]} 49. Rf2 {[%emt 0:00:02]} Qe1+ {[%emt 0:00:15]} 50. Rf1 {[%emt 0:00:01]} Qe3+ {[%emt 0:00:01]} 51. Rf2 {[%emt 0:00:02]} Qd4 {[%emt 0:00:08]} 52. Re8 {[%emt 0:00:29]} Qd1+ {[%emt 0:00:09]} 53. Rf1 {[%emt 0:00:02]} Qxd5 {[%emt 0:00:02]} 54. Re2 {[%emt 0:00:10]} a5 {[%emt 0:00:06]} 55. Rff2 {[%emt 0:00:10]} f5 {[%emt 0:00:05]} 56. Rd2 {[%emt 0:00:02]} Qc5 57. Rc2 Qe3 {[%emt 0:00:06]} 58. Rce2 {[%emt 0:00:01]} Qc1+ {[%emt 0:00:01]} 59. Kg2 {[%emt 0:00:02]} Qc6+ {[%emt 0:00:03]} 60. Rf3 {[%emt 0:00:02]} a4 {[%emt 0:00:10]} 61. Ree3 {[%emt 0:00:09]} h5 {[%emt 0:00:04]} 62. Kf2 {[%emt 0:00:03]} Qc2+ {[%emt 0:00:09]} 63. Kg1 {[%emt 0:00:01]} h4 {[%emt 0:00:06]} 64. gxh4+ {[%emt 0:00:01]} Kxh4 {[%emt 0:00:02]} 65. Rf2 {[%emt 0:00:11]} Qc1+ {[%emt 0:00:03]} 0-1

[Event "29th Paul Keres Memorial 2020"]
[Site "Tallinn"]
[Date "2020.01.12"]
[Round "10.3"]
[White "Turov, Maxim"]
[Black "Onischuk, Vladimir"]
[Result "0-1"]
[ECO "A41"]
[WhiteElo "2567"]
[BlackElo "2631"]
[Annotator "ChessBase"]
[PlyCount "81"]
[EventDate "2020.01.11"]
[EventType "swiss"]
[EventCountry "EST"]
[SourceTitle "playchess.com"]
[Source "ChessBase"]
[SourceQuality "1"]
[TimeControl "900+5"]

1. d4 {[%emt 0:00:00]} d6 {[%emt 0:01:06]} 2. Nf3 {[%emt 0:00:03]} g6 {[%emt 0:00:01]} 3. g3 {[%emt 0:00:02]} Bg7 {[%emt 0:00:01]} 4. Bg2 {[%emt 0:00:00]} Nf6 {[%emt 0:00:01]} 5. O-O {[%emt 0:00:02]} O-O {[%emt 0:00:02]} 6. Re1 {[%emt 0:00:01]} Nbd7 {[%emt 0:00:39]} 7. e4 {[%emt 0:00:05]} e5 {[%emt 0:00:02]} 8. Nc3 {[%emt 0:00:07]} c6 {[%emt 0:00:09]} 9. a4 {[%emt 0:00:03]} Re8 {[%emt 0:00:13]} 10. h3 {[%emt 0:00:04]} Qc7 {[%emt 0:00:10]} 11. Bg5 {[%emt 0:00:04]} h6 {[%emt 0:00:42]} 12. Be3 {[%emt 0:00:03]} b6 {[%emt 0:00:13]} 13. Qd2 {[%emt 0:00:35]} Kh7 {[%emt 0:00:01]} 14. Rad1 {[%emt 0:00:46]} Bb7 {[%emt 0:00:11]} 15. dxe5 {[%emt 0:00:09]} dxe5 {[%emt 0:00:02]} 16. Qd6 {[%emt 0:00:25]} Qxd6 {[%emt 0:00:05]} 17. Rxd6 {[%emt 0:00:01]} Bf8 {[%emt 0:00:02]} 18. Rdd1 {[%emt 0:00:18]} Bb4 {[%emt 0:01:18]} 19. Nd2 {[%emt 0:00:48]} Ba6 {[%emt 0:00:35]} 20. Bf1 {[%emt 0:00:14]} Bxf1 {[%emt 0:00:02]} 21. Kxf1 {[%emt 0:00:03]} Rad8 {[%emt 0:00:52]} 22. f3 {[%emt 0:00:10]} Nc5 {[%emt 0:00:35]} 23. a5 {[%emt 0:00:20]} Bxa5 {[%emt 0:00:38]} 24. Bxc5 {[%emt 0:00:17]} bxc5 {[%emt 0:00:15]} 25. Nc4 {[%emt 0:00:20]} Bb4 {[%emt 0:02:22]} 26. Rxd8 {[%emt 0:00:26]} Rxd8 {[%emt 0:00:01]} 27. Nxe5 {[%emt 0:01:16]} Nh5 {[%emt 0:00:01]} 28. Rd1 {[%emt 0:00:25]} Bxc3 {[%emt 0:01:39]} 29. Rxd8 {[%emt 0:00:02]} Bxe5 {[%emt 0:00:16]} 30. Rd7 {[%emt 0:01:38]} Nxg3+ {[%emt 0:00:33]} 31. Kf2 {[%emt 0:00:01]} Kg7 {[%emt 0:00:01]} 32. Rxa7 Nh5 {[%emt 0:00:11]} 33. Ra6 {[%emt 0:00:47]} Bxb2 {[%emt 0:00:16]} 34. Rxc6 {[%emt 0:00:03]} Bd4+ {[%emt 0:00:02]} 35. Kg2 {[%emt 0:00:11]} Nf4+ {[%emt 0:00:05]} 36. Kg3 {[%emt 0:00:02]} Be3 {[%emt 0:00:01]} 37. Rc7 {[%emt 0:00:41]} Ne6 {[%emt 0:00:13]} 38. Rc6 {[%emt 0:00:06]} Nd4 {[%emt 0:00:27]} 39. Rc8 {[%emt 0:00:02]} Nxc2 {[%emt 0:00:21]} 40. f4 {[%emt 0:00:01]} Nd4 {[%emt 0:00:04]} 41. e5 {[%emt 0:00:15]} 0-1

[Event "29th Paul Keres Memorial 2020"]
[Site "Tallinn"]
[Date "2020.01.12"]
[Round "10.4"]
[White "Tiviakov, Sergei"]
[Black "Seeman, Tarvo"]
[Result "1-0"]
[ECO "B06"]
[WhiteElo "2608"]
[BlackElo "2410"]
[Annotator "ChessBase"]
[PlyCount "85"]
[EventDate "2020.01.11"]
[EventType "swiss"]
[EventCountry "EST"]
[SourceTitle "playchess.com"]
[Source "ChessBase"]
[SourceQuality "1"]
[TimeControl "900+5"]

1. e4 {[%emt 0:00:00]} g6 {[%emt 0:00:00]} 2. d4 {[%emt 0:00:00]} Bg7 {[%emt 0:00:00]} 3. c3 {[%emt 0:00:00]} d6 {[%emt 0:00:01]} 4. Nf3 {[%emt 0:00:01]} Nf6 {[%emt 0:00:04]} 5. Bd3 {[%emt 0:00:02]} O-O {[%emt 0:00:05]} 6. O-O {[%emt 0:00:03]} Nc6 {[%emt 0:00:07]} 7. d5 {[%emt 0:00:02]} Nb8 {[%emt 0:00:08]} 8. h3 {[%emt 0:00:02]} e5 {[%emt 0:00:10]} 9. dxe6 {[%emt 0:00:02]} Bxe6 {[%emt 0:00:05]} 10. Bg5 {[%emt 0:00:06]} Nbd7 {[%emt 0:00:35]} 11. Nbd2 {[%emt 0:00:07]} Re8 {[%emt 0:00:58]} 12. Nd4 {[%emt 0:00:14]} Nc5 {[%emt 0:00:32]} 13. Bc2 {[%emt 0:00:03]} Bd7 {[%emt 0:03:24]} 14. f4 {[%emt 0:00:09]} Bc6 {[%emt 0:01:58]} 15. Qf3 {[%emt 0:00:38]} Ne6 {[%emt 0:00:25]} 16. Nxc6 {[%emt 0:00:58]} bxc6 {[%emt 0:00:02]} 17. Bh4 {[%emt 0:00:03]} Qb8 {[%emt 0:00:56]} 18. f5 {[%emt 0:03:42]} gxf5 {[%emt 0:01:17]} 19. Bxf6 {[%emt 0:00:03]} Bxf6 {[%emt 0:00:08]} 20. Qxf5 {[%emt 0:00:02]} Be5 {[%emt 0:00:25]} 21. Qxf7+ {[%emt 0:00:15]} Kh8 {[%emt 0:00:01]} 22. Nc4 {[%emt 0:01:04]} Qb5 {[%emt 0:00:45]} 23. Bd3 {[%emt 0:00:46]} Ng5 {[%emt 0:01:52]} 24. Qh5 {[%emt 0:00:07]} Rg8 {[%emt 0:00:12]} 25. Rf5 {[%emt 0:00:34]} Ne6 {[%emt 0:00:39]} 26. Qh4 {[%emt 0:03:49]} Qc5+ {[%emt 0:00:28]} 27. Kh1 {[%emt 0:00:02]} Ng7 {[%emt 0:00:27]} 28. Rf7 {[%emt 0:00:20]} a5 {[%emt 0:00:49]} 29. Raf1 {[%emt 0:00:04]} Rae8 {[%emt 0:00:18]} 30. Rxc7 {[%emt 0:00:09]} Re6 {[%emt 0:00:24]} 31. Rf5 {[%emt 0:00:22]} Rg6 {[%emt 0:00:11]} 32. Nxe5 {[%emt 0:01:19]} dxe5 {[%emt 0:00:02]} 33. Bf1 {[%emt 0:00:43]} Qb6 {[%emt 0:00:01]} 34. Rcf7 {[%emt 0:00:10]} Qxb2 {[%emt 0:00:02]} 35. Rxe5 {[%emt 0:00:09]} Qxc3 {[%emt 0:00:04]} 36. Ree7 {[%emt 0:00:13]} Qa1 {[%emt 0:00:11]} 37. Qf2 {[%emt 0:00:06]} a4 {[%emt 0:00:05]} 38. Rf8 {[%emt 0:00:09]} Nh5 {[%emt 0:00:07]} 39. Rxg8+ {[%emt 0:00:14]} Rxg8 {[%emt 0:00:01]} 40. Kh2 {[%emt 0:00:02]} Qc3 {[%emt 0:00:11]} 41. Be2 {[%emt 0:00:06]} Qb4 {[%emt 0:00:08]} 42. Qf7 {[%emt 0:00:19]} Ng7 {[%emt 0:00:05]} 43. Bc4 {[%emt 0:00:07]} 1-0